[Event "Early-Titled-Tuesday-Blitz-February-06-2024"]
[Site "Chess.com"]
[Date "2024.02.06"]
[Round "11"]
[White "Vazabanga"]
[Black "Som2310"]
[Result "0-1"]
[WhiteElo "2628"]
[BlackElo "2797"]
[TimeControl "180+1"]
[EndTime "10:05:06 PST"]
[Termination "Som2310 won by resignation"]

1. d4 {[%clk 0:03:00.9]} 1... Nf6 {[%clk 0:02:59.4]} 2. c4 {[%clk 0:03:01.3]}
2... g6 {[%clk 0:02:59.7]} 3. g3 {[%clk 0:03:01.3]} 3... Bg7 {[%clk 0:02:59.1]}
4. Bg2 {[%clk 0:03:01.9]} 4... d5 {[%clk 0:02:58]} 5. cxd5 {[%clk 0:03:01.9]}
5... Nxd5 {[%clk 0:02:58.4]} 6. e4 {[%clk 0:03:02]} 6... Nb6 {[%clk 0:02:58.6]}
7. Ne2 {[%clk 0:03:02.5]} 7... Bg4 {[%clk 0:02:54.9]} 8. Nbc3 {[%clk 0:03:00.6]}
8... O-O {[%clk 0:02:51.4]} 9. h3 {[%clk 0:02:58.5]} 9... Be6 {[%clk 0:02:51.4]}
10. O-O {[%clk 0:02:55.7]} 10... Qc8 {[%clk 0:02:49.4]} 11. Kh2 {[%clk
0:02:55.1]} 11... Rd8 {[%clk 0:02:49.5]} 12. b3 {[%clk 0:02:30.6]} 12... Bxd4
{[%clk 0:02:30.5]} 13. Nxd4 {[%clk 0:02:30.3]} 13... c5 {[%clk 0:02:30.8]} 14.
Nce2 {[%clk 0:01:53.9]} 14... cxd4 {[%clk 0:02:28.5]} 15. Bb2 {[%clk 0:01:47.3]}
15... d3 {[%clk 0:02:19.6]} 16. Nf4 {[%clk 0:01:46.8]} 16... Nc6 {[%clk
0:02:19.8]} 17. Rc1 {[%clk 0:01:36.3]} 17... Qd7 {[%clk 0:02:17.5]} 18. Qd2
{[%clk 0:01:36.1]} 18... Qd6 {[%clk 0:02:08.3]} 19. Rfd1 {[%clk 0:01:05.3]}
19... Ne5 {[%clk 0:02:02.7]} 20. Qc3 {[%clk 0:00:39.6]} 20... f6 {[%clk
0:02:01.9]} 21. Nxe6 {[%clk 0:00:35.3]} 21... Qxe6 {[%clk 0:02:01.8]} 22. f4
{[%clk 0:00:35.8]} 22... Rac8 {[%clk 0:02:00.3]} 23. Qd2 {[%clk 0:00:28.4]}
23... Nc6 {[%clk 0:01:59.3]} 24. f5 {[%clk 0:00:24.2]} 24... gxf5 {[%clk
0:01:50.5]} 25. exf5 {[%clk 0:00:25.1]} 25... Qxf5 {[%clk 0:01:50.9]} 26. Re1
{[%clk 0:00:20.6]} 26... e5 {[%clk 0:01:45.7]} 27. Be4 {[%clk 0:00:18]} 27...
Qg5 {[%clk 0:01:44.6]} 28. Re3 {[%clk 0:00:10.2]} 28... Nb4 {[%clk 0:01:35.7]}
29. Rxc8 {[%clk 0:00:04.9]} 29... Nxc8 {[%clk 0:01:33.7]} 30. Bxd3 {[%clk
0:00:05.5]} 30... Nxd3 {[%clk 0:01:31.1]} 31. h4 {[%clk 0:00:05]} 31... Qf5
{[%clk 0:01:27.9]} 32. Bc3 {[%clk 0:00:04]} 32... Qf2+ {[%clk 0:01:26.6]} 33.
Qxf2 {[%clk 0:00:03]} 33... Nxf2 {[%clk 0:01:26.9]} 0-1

[Event "Early-Titled-Tuesday-Blitz-February-06-2024"]
[Site "Chess.com"]
[Date "2024.02.06"]
[Round "11"]
[White "Bauman_Guy"]
[Black "Makswolf200817"]
[Result "1-0"]
[WhiteElo "2876"]
[BlackElo "2731"]
[TimeControl "180+1"]
[EndTime "10:05:18 PST"]
[Termination "Bauman_Guy won on time"]

1. e4 {[%clk 0:03:00.9]} 1... e6 {[%clk 0:03:00.1]} 2. d4 {[%clk 0:03:00.9]}
2... d5 {[%clk 0:03:00.7]} 3. Nc3 {[%clk 0:03:01.4]} 3... Bb4 {[%clk 0:03:00.5]}
4. e5 {[%clk 0:03:01.7]} 4... c5 {[%clk 0:03:00.5]} 5. a3 {[%clk 0:03:02.4]}
5... Bxc3+ {[%clk 0:03:01.3]} 6. bxc3 {[%clk 0:03:03.3]} 6... Qa5 {[%clk
0:03:02.1]} 7. Bd2 {[%clk 0:02:59.5]} 7... Qa4 {[%clk 0:03:02.6]} 8. Qb1 {[%clk
0:03:00.1]} 8... c4 {[%clk 0:03:02.5]} 9. h4 {[%clk 0:03:00.8]} 9... Nc6 {[%clk
0:03:02.9]} 10. h5 {[%clk 0:03:01]} 10... h6 {[%clk 0:03:03.6]} 11. g3 {[%clk
0:03:01.6]} 11... Nge7 {[%clk 0:03:04]} 12. Bh3 {[%clk 0:03:01.8]} 12... Bd7
{[%clk 0:03:04.6]} 13. Ne2 {[%clk 0:03:01.5]} 13... O-O-O {[%clk 0:03:05.1]} 14.
Nf4 {[%clk 0:03:01.9]} 14... Rdf8 {[%clk 0:02:50.1]} 15. O-O {[%clk 0:03:00.9]}
15... Nd8 {[%clk 0:02:49.1]} 16. Kh2 {[%clk 0:02:38.5]} 16... g5 {[%clk
0:02:26.3]} 17. Ng2 {[%clk 0:02:31.6]} 17... f5 {[%clk 0:02:19]} 18. exf6 {[%clk
0:02:30.4]} 18... Rxf6 {[%clk 0:02:19.1]} 19. Ne3 {[%clk 0:02:30.6]} 19... Rff8
{[%clk 0:02:13.8]} 20. Ng4 {[%clk 0:02:28.8]} 20... Be8 {[%clk 0:02:11]} 21. Ne5
{[%clk 0:02:14]} 21... Bxh5 {[%clk 0:02:10]} 22. Qb4 {[%clk 0:02:13.1]} 22...
Qxb4 {[%clk 0:02:07.6]} 23. axb4 {[%clk 0:02:14]} 23... a6 {[%clk 0:01:55.4]}
24. b5 {[%clk 0:02:13.5]} 24... axb5 {[%clk 0:01:55.8]} 25. Bc1 {[%clk
0:02:02.2]} 25... b4 {[%clk 0:00:59.6]} 26. cxb4 {[%clk 0:01:57.8]} 26... Be8
{[%clk 0:00:55.1]} 27. b5 {[%clk 0:01:54.5]} 27... Bxb5 {[%clk 0:00:53.7]} 28.
Ba3 {[%clk 0:01:54.5]} 28... Rh7 {[%clk 0:00:53.8]} 29. Bd6 {[%clk 0:01:52.9]}
29... Ba6 {[%clk 0:00:53.7]} 30. Rfb1 {[%clk 0:01:50.1]} 30... Nf7 {[%clk
0:00:03.8]} 31. Rxa6 {[%clk 0:01:33.4]} 31... Nxd6 {[%clk 0:00:03.3]} 32. Ra8+
{[%clk 0:01:28.1]} 32... Kc7 {[%clk 0:00:03.3]} 33. Rxf8 {[%clk 0:01:29]} 33...
Ne4 {[%clk 0:00:02.5]} 34. Bxe6 {[%clk 0:01:28]} 34... Nxf2 {[%clk 0:00:02.4]}
35. Rxf2 {[%clk 0:01:27.5]} 1-0

[Event "Early-Titled-Tuesday-Blitz-February-06-2024"]
[Site "Chess.com"]
[Date "2024.02.06"]
[Round "11"]
[White "Bodnar_Mykola"]
[Black "TregubovP"]
[Result "1/2-1/2"]
[WhiteElo "2524"]
[BlackElo "2680"]
[TimeControl "180+1"]
[EndTime "10:05:22 PST"]
[Termination "Game drawn by repetition"]

1. e4 {[%clk 0:02:40.5]} 1... c5 {[%clk 0:02:59.2]} 2. Nf3 {[%clk 0:02:39.7]}
2... e6 {[%clk 0:02:59.1]} 3. d4 {[%clk 0:02:39]} 3... cxd4 {[%clk 0:02:58.6]}
4. Nxd4 {[%clk 0:02:39.9]} 4... Nf6 {[%clk 0:02:59]} 5. Nc3 {[%clk 0:02:39.8]}
5... Nc6 {[%clk 0:02:59.6]} 6. Ndb5 {[%clk 0:02:37.2]} 6... Bb4 {[%clk
0:02:59.2]} 7. a3 {[%clk 0:02:37.2]} 7... Bxc3+ {[%clk 0:02:59.4]} 8. Nxc3
{[%clk 0:02:38.1]} 8... d5 {[%clk 0:02:59.6]} 9. exd5 {[%clk 0:02:38.5]} 9...
exd5 {[%clk 0:02:59.2]} 10. Bd3 {[%clk 0:02:37.8]} 10... O-O {[%clk 0:02:59.5]}
11. O-O {[%clk 0:02:36.9]} 11... d4 {[%clk 0:03:00.1]} 12. Ne4 {[%clk 0:02:37]}
12... Bf5 {[%clk 0:03:00.2]} 13. Bg5 {[%clk 0:02:31.8]} 13... Bxe4 {[%clk
0:03:00.5]} 14. Bxe4 {[%clk 0:02:31.2]} 14... h6 {[%clk 0:03:01.1]} 15. Bxc6
{[%clk 0:02:27.9]} 15... bxc6 {[%clk 0:02:55.6]} 16. Bxf6 {[%clk 0:02:27.1]}
16... Qxf6 {[%clk 0:02:55.3]} 17. Qd3 {[%clk 0:02:27.8]} 17... c5 {[%clk
0:02:47.9]} 18. b3 {[%clk 0:02:27.8]} 18... a5 {[%clk 0:02:45.8]} 19. a4 {[%clk
0:02:27.4]} 19... Rab8 {[%clk 0:02:39.7]} 20. Rfe1 {[%clk 0:02:26.5]} 20... Rb4
{[%clk 0:02:36.2]} 21. Re4 {[%clk 0:02:23.6]} 21... Rc8 {[%clk 0:02:31.1]} 22.
Rae1 {[%clk 0:02:19.5]} 22... g6 {[%clk 0:02:28.8]} 23. h3 {[%clk 0:02:13.7]}
23... Kg7 {[%clk 0:02:03.5]} 24. g3 {[%clk 0:02:07.7]} 24... Rd8 {[%clk
0:01:42.1]} 25. h4 {[%clk 0:02:02.3]} 25... c4 {[%clk 0:01:34.1]} 26. bxc4
{[%clk 0:02:02.5]} 26... Rxa4 {[%clk 0:01:34.4]} 27. Re5 {[%clk 0:02:03]} 27...
Rc8 {[%clk 0:01:19.5]} 28. c5 {[%clk 0:02:00.2]} 28... Rb4 {[%clk 0:01:16.6]}
29. h5 {[%clk 0:01:58.6]} 29... gxh5 {[%clk 0:01:10.6]} 30. Rf5 {[%clk 0:01:53]}
30... Qg6 {[%clk 0:01:01.3]} 31. Re7 {[%clk 0:01:51.1]} 31... Rb1+ {[%clk
0:01:00.8]} 32. Kh2 {[%clk 0:01:48.2]} 32... Rf8 {[%clk 0:00:59.1]} 33. Qxd4+
{[%clk 0:01:47.2]} 33... Kg8 {[%clk 0:00:57.9]} 34. Rf6 {[%clk 0:01:37.7]} 34...
Qg4 {[%clk 0:00:50.1]} 35. Qd5 {[%clk 0:01:34.3]} 35... Rd1 {[%clk 0:00:45.2]}
36. Rexf7 {[%clk 0:00:45.8]} 36... Rxd5 {[%clk 0:00:41.6]} 37. Rxf8+ {[%clk
0:00:45]} 37... Kg7 {[%clk 0:00:41.7]} 38. R8f7+ {[%clk 0:00:45.1]} 38... Kg8
{[%clk 0:00:42]} 39. Rf8+ {[%clk 0:00:45.2]} 39... Kg7 {[%clk 0:00:42.3]} 40.
R8f7+ {[%clk 0:00:45.6]} 40... Kg8 {[%clk 0:00:42.3]} 41. Rf8+ {[%clk 0:00:46]}
1/2-1/2

[Event "Early-Titled-Tuesday-Blitz-February-06-2024"]
[Site "Chess.com"]
[Date "2024.02.06"]
[Round "11"]
[White "flomarechot"]
[Black "EvgenyBurmakin"]
[Result "0-1"]
[WhiteElo "2296"]
[BlackElo "2423"]
[TimeControl "180+1"]
[EndTime "10:05:23 PST"]
[Termination "EvgenyBurmakin won by resignation"]

1. Nf3 {[%clk 0:03:00.9]} 1... Nf6 {[%clk 0:02:59.7]} 2. b3 {[%clk 0:03:00.7]}
2... g6 {[%clk 0:02:59.6]} 3. Bb2 {[%clk 0:03:01.3]} 3... Bg7 {[%clk 0:03:00.3]}
4. e3 {[%clk 0:03:02]} 4... d6 {[%clk 0:03:00.7]} 5. d4 {[%clk 0:03:02.8]} 5...
O-O {[%clk 0:03:00.5]} 6. Be2 {[%clk 0:03:03.4]} 6... Ne4 {[%clk 0:02:57.7]} 7.
O-O {[%clk 0:03:03.2]} 7... c5 {[%clk 0:02:57.6]} 8. Nbd2 {[%clk 0:02:59.5]}
8... Nxd2 {[%clk 0:02:54.4]} 9. Qxd2 {[%clk 0:02:59.8]} 9... Nc6 {[%clk
0:02:54.9]} 10. c4 {[%clk 0:02:59.2]} 10... cxd4 {[%clk 0:02:43.8]} 11. Nxd4
{[%clk 0:02:59.1]} 11... Nxd4 {[%clk 0:02:42.7]} 12. Bxd4 {[%clk 0:02:59]} 12...
Bxd4 {[%clk 0:02:42.6]} 13. Qxd4 {[%clk 0:02:57.8]} 13... Be6 {[%clk 0:02:39.2]}
14. Bf3 {[%clk 0:02:57.1]} 14... Qc7 {[%clk 0:02:37.9]} 15. Rac1 {[%clk
0:02:52.9]} 15... Rac8 {[%clk 0:02:37.2]} 16. Qxa7 {[%clk 0:02:17.2]} 16... Ra8
{[%clk 0:02:36.6]} 17. Qd4 {[%clk 0:02:17.8]} 17... Rxa2 {[%clk 0:02:35.3]} 18.
Ra1 {[%clk 0:02:16.3]} 18... Rfa8 {[%clk 0:02:29.6]} 19. Rxa2 {[%clk 0:02:15.7]}
19... Rxa2 {[%clk 0:02:30.5]} 20. h3 {[%clk 0:02:15.5]} 20... Ra3 {[%clk
0:02:01.2]} 21. Ra1 {[%clk 0:01:41.4]} 21... Qa5 {[%clk 0:01:56.1]} 22. Rxa3
{[%clk 0:01:28.9]} 22... Qxa3 {[%clk 0:01:57]} 23. Qb6 {[%clk 0:01:17.8]} 23...
Qc1+ {[%clk 0:01:51.1]} 24. Kh2 {[%clk 0:01:18]} 24... Qc2 {[%clk 0:01:50.8]}
25. e4 {[%clk 0:00:44.2]} 25... Kg7 {[%clk 0:01:35.3]} 26. g3 {[%clk 0:00:43.2]}
26... Qc3 {[%clk 0:01:29.8]} 27. Bg2 {[%clk 0:00:37.7]} 27... Qb2 {[%clk
0:01:25.8]} 28. Bf3 {[%clk 0:00:34.7]} 28... Bxc4 {[%clk 0:01:22.1]} 29. Kg2
{[%clk 0:00:22]} 29... Qxb3 {[%clk 0:01:17.5]} 30. Qc7 {[%clk 0:00:19.5]} 30...
Qd3 {[%clk 0:01:03.6]} 31. Kh2 {[%clk 0:00:19.8]} 31... Qxf3 {[%clk 0:01:02]}
32. Qxc4 {[%clk 0:00:18.6]} 32... Qxf2+ {[%clk 0:01:02]} 33. Kh1 {[%clk
0:00:19.5]} 33... Qxg3 {[%clk 0:00:58.5]} 34. Qc3+ {[%clk 0:00:19.7]} 34... Qxc3
{[%clk 0:00:57.8]} 0-1

[Event "Early-Titled-Tuesday-Blitz-February-06-2024"]
[Site "Chess.com"]
[Date "2024.02.06"]
[Round "11"]
[White "Nasrin_Babayeva"]
[Black "RianKapriaga"]
[Result "0-1"]
[WhiteElo "1948"]
[BlackElo "2278"]
[TimeControl "180+1"]
[EndTime "10:05:25 PST"]
[Termination "RianKapriaga won by resignation"]

1. e4 {[%clk 0:02:54.4]} 1... d6 {[%clk 0:02:59.6]} 2. Nf3 {[%clk 0:02:52.3]}
2... g6 {[%clk 0:03:00.5]} 3. d3 {[%clk 0:02:49.2]} 3... Bg7 {[%clk 0:03:00]} 4.
c3 {[%clk 0:02:49.3]} 4... Nc6 {[%clk 0:02:56.5]} 5. Nbd2 {[%clk 0:02:48.1]}
5... e5 {[%clk 0:02:52.2]} 6. Be2 {[%clk 0:02:47.6]} 6... f5 {[%clk 0:02:51.1]}
7. O-O {[%clk 0:02:45.9]} 7... Nf6 {[%clk 0:02:49.4]} 8. d4 {[%clk 0:02:40.7]}
8... O-O {[%clk 0:02:46.9]} 9. Bc4+ {[%clk 0:02:25.8]} 9... Kh8 {[%clk
0:02:45.6]} 10. exf5 {[%clk 0:02:20]} 10... gxf5 {[%clk 0:02:40.4]} 11. dxe5
{[%clk 0:02:18.4]} 11... dxe5 {[%clk 0:02:34.4]} 12. Ng5 {[%clk 0:02:17.5]}
12... Qe8 {[%clk 0:02:27.6]} 13. Ndf3 {[%clk 0:02:09.2]} 13... h6 {[%clk
0:02:22.7]} 14. Nf7+ {[%clk 0:02:02.1]} 14... Rxf7 {[%clk 0:02:21.5]} 15. Bxf7
{[%clk 0:02:00.7]} 15... Qxf7 {[%clk 0:02:21.6]} 16. Re1 {[%clk 0:01:55.8]}
16... e4 {[%clk 0:02:19.9]} 17. Nd4 {[%clk 0:01:54.1]} 17... Nxd4 {[%clk
0:02:17.8]} 18. Qxd4 {[%clk 0:01:55]} 18... Be6 {[%clk 0:02:17.6]} 19. Bf4
{[%clk 0:01:48.6]} 19... Rg8 {[%clk 0:02:03.6]} 20. Qxa7 {[%clk 0:01:42.7]}
20... Nd5 {[%clk 0:01:59]} 21. Bd2 {[%clk 0:01:25.2]} 21... c6 {[%clk
0:01:52.6]} 22. c4 {[%clk 0:01:14.6]} 22... Nf6 {[%clk 0:01:47.6]} 23. b3 {[%clk
0:01:02.8]} 23... f4 {[%clk 0:01:45.6]} 24. Bxf4 {[%clk 0:00:47]} 24... Nh5
{[%clk 0:01:44]} 25. Be3 {[%clk 0:00:41]} 25... Nf4 {[%clk 0:01:35.3]} 26. Bd4
{[%clk 0:00:35.4]} 26... Nxg2 {[%clk 0:01:28.1]} 27. Rxe4 {[%clk 0:00:29]} 27...
Qg6 {[%clk 0:01:13.7]} 28. Bxg7+ {[%clk 0:00:26.7]} 28... Rxg7 {[%clk
0:01:09.3]} 29. Qb8+ {[%clk 0:00:20.9]} 29... Kh7 {[%clk 0:01:08.8]} 30. Rxe6
{[%clk 0:00:08.1]} 30... Qxe6 {[%clk 0:01:05.2]} 0-1

[Event "Early-Titled-Tuesday-Blitz-February-06-2024"]
[Site "Chess.com"]
[Date "2024.02.06"]
[Round "11"]
[White "AlexeiShirov"]
[Black "Timerkhanov"]
[Result "1-0"]
[WhiteElo "2793"]
[BlackElo "2657"]
[TimeControl "180+1"]
[EndTime "10:05:26 PST"]
[Termination "AlexeiShirov won on time"]

1. e4 {[%clk 0:03:00.9]} 1... c5 {[%clk 0:03:00.5]} 2. Nf3 {[%clk 0:03:00.8]}
2... a6 {[%clk 0:03:01]} 3. c3 {[%clk 0:02:59.9]} 3... d5 {[%clk 0:03:00.9]} 4.
exd5 {[%clk 0:02:57.6]} 4... Nf6 {[%clk 0:03:01.3]} 5. d4 {[%clk 0:02:56.4]}
5... cxd4 {[%clk 0:03:02.2]} 6. Qxd4 {[%clk 0:02:50.3]} 6... Qxd5 {[%clk
0:03:01.6]} 7. Qxd5 {[%clk 0:02:43.5]} 7... Nxd5 {[%clk 0:03:02.5]} 8. Bc4
{[%clk 0:02:43.2]} 8... Nf6 {[%clk 0:03:02.7]} 9. Be3 {[%clk 0:02:36.7]} 9... b5
{[%clk 0:03:02.6]} 10. Bb3 {[%clk 0:02:35.7]} 10... Bb7 {[%clk 0:03:03]} 11. a4
{[%clk 0:02:33.6]} 11... e6 {[%clk 0:02:54.4]} 12. O-O {[%clk 0:02:29.3]} 12...
Nbd7 {[%clk 0:02:52.9]} 13. axb5 {[%clk 0:02:26.2]} 13... axb5 {[%clk
0:02:53.8]} 14. Rxa8+ {[%clk 0:02:24.8]} 14... Bxa8 {[%clk 0:02:54.7]} 15. Nd4
{[%clk 0:02:23.8]} 15... b4 {[%clk 0:02:49.3]} 16. c4 {[%clk 0:02:23.8]} 16...
Bc5 {[%clk 0:02:41]} 17. Nd2 {[%clk 0:02:20.4]} 17... O-O {[%clk 0:02:38.3]} 18.
Ba4 {[%clk 0:02:14.4]} 18... Ne5 {[%clk 0:02:32.8]} 19. Bb5 {[%clk 0:02:09.7]}
19... Rd8 {[%clk 0:02:30.1]} 20. N2b3 {[%clk 0:02:08.4]} 20... Be7 {[%clk
0:02:21.3]} 21. h3 {[%clk 0:02:03.8]} 21... Nd3 {[%clk 0:02:21.1]} 22. Rb1
{[%clk 0:01:54.5]} 22... Ne4 {[%clk 0:02:19.4]} 23. Nc6 {[%clk 0:01:51.7]} 23...
Bxc6 {[%clk 0:02:15.4]} 24. Bxc6 {[%clk 0:01:51]} 24... Nec5 {[%clk 0:02:00.9]}
25. Nxc5 {[%clk 0:01:48.7]} 25... Nxc5 {[%clk 0:01:43.3]} 26. Ra1 {[%clk
0:01:48.3]} 26... Nb3 {[%clk 0:01:35]} 27. Ra7 {[%clk 0:01:40.1]} 27... Bf6
{[%clk 0:01:17]} 28. Ba4 {[%clk 0:01:31]} 28... Nd2 {[%clk 0:00:47]} 29. c5
{[%clk 0:01:16.6]} 29... Nc4 {[%clk 0:00:38.6]} 30. c6 {[%clk 0:01:15]} 30...
Nxe3 {[%clk 0:00:35.6]} 31. c7 {[%clk 0:01:14.6]} 31... Rf8 {[%clk 0:00:10.7]}
32. fxe3 {[%clk 0:01:12.6]} 32... Bg5 {[%clk 0:00:05.7]} 33. Kf2 {[%clk
0:01:11.1]} 1-0

[Event "Early-Titled-Tuesday-Blitz-February-06-2024"]
[Site "Chess.com"]
[Date "2024.02.06"]
[Round "11"]
[White "dianamirza"]
[Black "Canal_Showdrez"]
[Result "0-1"]
[WhiteElo "1943"]
[BlackElo "2037"]
[TimeControl "180+1"]
[EndTime "10:05:41 PST"]
[Termination "Canal_Showdrez won by resignation"]

1. d4 {[%clk 0:03:00.9]} 1... Nf6 {[%clk 0:02:13.4]} 2. Nf3 {[%clk 0:02:59]}
2... g6 {[%clk 0:02:11.7]} 3. c4 {[%clk 0:02:58.9]} 3... Bg7 {[%clk 0:02:10.5]}
4. Nc3 {[%clk 0:02:59.4]} 4... O-O {[%clk 0:02:08]} 5. e4 {[%clk 0:02:59.8]}
5... d6 {[%clk 0:02:01.3]} 6. h3 {[%clk 0:03:00.1]} 6... e5 {[%clk 0:01:58.4]}
7. d5 {[%clk 0:03:00.3]} 7... a5 {[%clk 0:01:46.4]} 8. Be3 {[%clk 0:03:00.9]}
8... Na6 {[%clk 0:01:40.8]} 9. Qd2 {[%clk 0:03:01.6]} 9... Nd7 {[%clk
0:01:34.9]} 10. g4 {[%clk 0:03:01.8]} 10... Ndc5 {[%clk 0:01:24.4]} 11. Be2
{[%clk 0:02:56.2]} 11... Kh8 {[%clk 0:01:17.2]} 12. O-O-O {[%clk 0:02:52.6]}
12... Nb4 {[%clk 0:01:01.6]} 13. Kb1 {[%clk 0:02:50.6]} 13... a4 {[%clk
0:00:56.9]} 14. h4 {[%clk 0:02:50.4]} 14... a3 {[%clk 0:00:54.2]} 15. b3 {[%clk
0:02:48.2]} 15... f5 {[%clk 0:00:47.6]} 16. gxf5 {[%clk 0:02:38.8]} 16... gxf5
{[%clk 0:00:47.2]} 17. Bg5 {[%clk 0:02:37.6]} 17... Qe8 {[%clk 0:00:42.2]} 18.
Bh6 {[%clk 0:02:34.5]} 18... Bxh6 {[%clk 0:00:31.5]} 19. Qxh6 {[%clk 0:02:31.6]}
19... fxe4 {[%clk 0:00:24.2]} 20. Rdg1 {[%clk 0:02:20.5]} 20... Qf7 {[%clk
0:00:20.1]} 21. Ng5 {[%clk 0:02:19.5]} 21... Qg6 {[%clk 0:00:19.2]} 22. Ngxe4
{[%clk 0:02:07.5]} 22... Qxh6 {[%clk 0:00:17.5]} 23. Nxc5 {[%clk 0:01:58.3]}
23... dxc5 {[%clk 0:00:17.2]} 24. Rg5 {[%clk 0:01:57.5]} 24... Bf5+ {[%clk
0:00:15.9]} 25. Kc1 {[%clk 0:01:50.8]} 25... Qf6 {[%clk 0:00:14.9]} 26. Rhg1
{[%clk 0:01:48]} 26... Rad8 {[%clk 0:00:13.3]} 27. Nb5 {[%clk 0:01:41.7]} 27...
Rd7 {[%clk 0:00:12.8]} 28. Nxa3 {[%clk 0:01:40]} 28... Nxa2+ {[%clk 0:00:12.6]}
29. Kb2 {[%clk 0:01:39.1]} 29... Nb4 {[%clk 0:00:13.5]} 30. Nb5 {[%clk
0:01:36.9]} 30... Nd3+ {[%clk 0:00:13.3]} 31. Kc3 {[%clk 0:01:27.9]} 31... e4+
{[%clk 0:00:12.7]} 32. Kd2 {[%clk 0:01:28.1]} 32... Nxf2 {[%clk 0:00:12.9]} 33.
Rf1 {[%clk 0:01:23]} 33... Nh3 {[%clk 0:00:12.5]} 34. Rgxf5 {[%clk 0:01:22.2]}
34... Qxf5 {[%clk 0:00:13]} 35. Rxf5 {[%clk 0:01:22.6]} 35... Rxf5 {[%clk
0:00:13.7]} 36. Bg4 {[%clk 0:01:22.9]} 36... Rf2+ {[%clk 0:00:11.4]} 37. Ke3
{[%clk 0:01:23.1]} 37... Rdf7 {[%clk 0:00:11.6]} 38. Bxh3 {[%clk 0:01:23.4]}
38... R2f3+ {[%clk 0:00:12]} 39. Kxe4 {[%clk 0:01:23.8]} 39... Rxh3 {[%clk
0:00:12.9]} 40. Ke5 {[%clk 0:01:22.4]} 40... Rxb3 {[%clk 0:00:13.4]} 41. Ke6
{[%clk 0:01:21.3]} 41... Rg7 {[%clk 0:00:14.3]} 42. Nxc7 {[%clk 0:01:19.8]}
42... Rxc7 {[%clk 0:00:12.2]} 43. d6 {[%clk 0:01:20.2]} 43... Rg7 {[%clk
0:00:13.1]} 44. d7 {[%clk 0:01:20.4]} 44... Re3+ {[%clk 0:00:13.5]} 45. Kd6
{[%clk 0:01:20.4]} 45... Rd3+ {[%clk 0:00:14.1]} 46. Kc7 {[%clk 0:01:19.9]}
46... Rdxd7+ {[%clk 0:00:15]} 47. Kb6 {[%clk 0:01:20.5]} 47... Rd4 {[%clk
0:00:15.5]} 48. Kxc5 {[%clk 0:01:21.1]} 48... Rxh4 {[%clk 0:00:16.2]} 49. Kb6
{[%clk 0:01:21.3]} 49... Rgg4 {[%clk 0:00:16.8]} 50. c5 {[%clk 0:01:21.7]} 50...
Rc4 {[%clk 0:00:17.3]} 51. Kxb7 {[%clk 0:01:20.2]} 51... Rxc5 {[%clk 0:00:17.4]}
52. Kb6 {[%clk 0:01:21.1]} 52... Rc2 {[%clk 0:00:17.8]} 0-1

[Event "Early-Titled-Tuesday-Blitz-February-06-2024"]
[Site "Chess.com"]
[Date "2024.02.06"]
[Round "11"]
[White "AniJak"]
[Black "yuriydovzik"]
[Result "1-0"]
[WhiteElo "2351"]
[BlackElo "2205"]
[TimeControl "180+1"]
[EndTime "10:05:42 PST"]
[Termination "AniJak won on time"]

1. e4 {[%clk 0:03:00.9]} 1... b6 {[%clk 0:02:56.7]} 2. d4 {[%clk 0:03:00.8]}
2... e6 {[%clk 0:02:55.3]} 3. c4 {[%clk 0:02:59.8]} 3... Ne7 {[%clk 0:02:42.4]}
4. d5 {[%clk 0:02:57.6]} 4... Ng6 {[%clk 0:02:39.1]} 5. Nc3 {[%clk 0:02:56.3]}
5... Be7 {[%clk 0:02:33.1]} 6. Nf3 {[%clk 0:02:55.1]} 6... O-O {[%clk
0:02:32.1]} 7. Bd3 {[%clk 0:02:53.6]} 7... Na6 {[%clk 0:02:28.3]} 8. O-O {[%clk
0:02:51.4]} 8... Nc5 {[%clk 0:02:27.7]} 9. Bc2 {[%clk 0:02:50.6]} 9... a5 {[%clk
0:02:27]} 10. e5 {[%clk 0:02:46.4]} 10... Ba6 {[%clk 0:02:20]} 11. b3 {[%clk
0:02:39.5]} 11... exd5 {[%clk 0:02:08.7]} 12. Nxd5 {[%clk 0:02:38.7]} 12... Re8
{[%clk 0:02:01.5]} 13. Nxe7+ {[%clk 0:02:35.2]} 13... Qxe7 {[%clk 0:01:59.4]}
14. Bg5 {[%clk 0:02:25.9]} 14... Qf8 {[%clk 0:01:57.1]} 15. Re1 {[%clk
0:02:24.8]} 15... Bb7 {[%clk 0:01:55.3]} 16. Bxg6 {[%clk 0:02:06.7]} 16... hxg6
{[%clk 0:01:51.1]} 17. Nd4 {[%clk 0:01:57.9]} 17... Ne6 {[%clk 0:01:45.6]} 18.
Nxe6 {[%clk 0:01:53.7]} 18... dxe6 {[%clk 0:01:36.2]} 19. Qg4 {[%clk 0:01:47.2]}
19... f6 {[%clk 0:01:16.9]} 20. Bf4 {[%clk 0:01:43.7]} 20... Qf7 {[%clk
0:01:10.8]} 21. Re3 {[%clk 0:01:36.2]} 21... g5 {[%clk 0:01:04.1]} 22. Bg3
{[%clk 0:01:35.2]} 22... Rad8 {[%clk 0:00:58.3]} 23. Rae1 {[%clk 0:01:34]} 23...
c5 {[%clk 0:00:49.1]} 24. exf6 {[%clk 0:01:32.8]} 24... gxf6 {[%clk 0:00:48.5]}
25. h4 {[%clk 0:01:30.4]} 25... Rd4 {[%clk 0:00:41.6]} 26. Qh3 {[%clk
0:01:17.4]} 26... g4 {[%clk 0:00:39]} 27. Qh2 {[%clk 0:01:17.1]} 27... e5 {[%clk
0:00:29.5]} 28. h5 {[%clk 0:01:12]} 28... Kh7 {[%clk 0:00:24.3]} 29. Qh4 {[%clk
0:01:07.9]} 29... Rg8 {[%clk 0:00:19]} 30. Bxe5 {[%clk 0:01:02.3]} 30... fxe5
{[%clk 0:00:17.3]} 31. Rxe5 {[%clk 0:01:03.2]} 31... g3 {[%clk 0:00:07.1]} 32.
Re7 {[%clk 0:00:51.4]} 32... Rxh4 {[%clk 0:00:05]} 33. Rxf7+ {[%clk 0:00:51.5]}
1-0